[Event "Early-Titled-Tuesday-Blitz-September-12-2023"]
[Site "Chess.com"]
[Date "2023.09.12"]
[Round "2"]
[White "Niilo1"]
[Black "GlavkonVVS"]
[Result "0-1"]
[WhiteElo "2272"]
[BlackElo "2566"]
[TimeControl "180+1"]
[EndTime "8:19:04 PDT"]
[Termination "GlavkonVVS won on time"]

1. e4 {[%clk 0:03:00.9]} 1... e5 {[%clk 0:02:57.5]} 2. Nf3 {[%clk 0:03:01.4]}
2... Nc6 {[%clk 0:02:57.1]} 3. Nc3 {[%clk 0:03:01]} 3... g6 {[%clk 0:02:56.1]}
4. Bb5 {[%clk 0:03:01.7]} 4... Nge7 {[%clk 0:02:55.8]} 5. O-O {[%clk 0:02:57.8]}
5... Bg7 {[%clk 0:02:56]} 6. Nd5 {[%clk 0:02:54.2]} 6... O-O {[%clk 0:02:53]} 7.
Re1 {[%clk 0:02:53.8]} 7... d6 {[%clk 0:02:51.2]} 8. c3 {[%clk 0:02:52.2]} 8...
a6 {[%clk 0:02:49.1]} 9. Bf1 {[%clk 0:02:49.7]} 9... h6 {[%clk 0:02:43.6]} 10.
d4 {[%clk 0:02:48.1]} 10... exd4 {[%clk 0:02:34.6]} 11. cxd4 {[%clk 0:02:47.4]}
11... Nxd5 {[%clk 0:02:30.6]} 12. exd5 {[%clk 0:02:46.7]} 12... Ne7 {[%clk
0:02:31.2]} 13. Qb3 {[%clk 0:02:22.4]} 13... b5 {[%clk 0:02:28.9]} 14. a4 {[%clk
0:02:20.2]} 14... Bb7 {[%clk 0:02:22.2]} 15. axb5 {[%clk 0:02:08.1]} 15... Bxd5
{[%clk 0:02:21.7]} 16. Qc3 {[%clk 0:02:03.1]} 16... axb5 {[%clk 0:02:15]} 17.
Rxa8 {[%clk 0:01:59.6]} 17... Bxa8 {[%clk 0:02:15.9]} 18. Bxb5 {[%clk
0:01:57.8]} 18... Nf5 {[%clk 0:02:15.1]} 19. Bc6 {[%clk 0:01:49.9]} 19... Bxc6
{[%clk 0:02:14.8]} 20. Qxc6 {[%clk 0:01:50.8]} 20... Nxd4 {[%clk 0:01:48.1]} 21.
Nxd4 {[%clk 0:01:50.5]} 21... Bxd4 {[%clk 0:01:48.3]} 22. Bxh6 {[%clk
0:01:51.1]} 22... Qh4 {[%clk 0:01:38.4]} 23. Be3 {[%clk 0:01:46.2]} 23... Bxb2
{[%clk 0:01:32.3]} 24. Qxc7 {[%clk 0:01:43]} 24... Be5 {[%clk 0:01:32.1]} 25. g3
{[%clk 0:01:40.5]} 25... Qh3 {[%clk 0:01:18.6]} 26. Rb1 {[%clk 0:01:32.5]} 26...
Rc8 {[%clk 0:01:09.5]} 27. Qe7 {[%clk 0:01:32.1]} 27... Qe6 {[%clk 0:01:00.9]}
28. Qh4 {[%clk 0:01:13.4]} 28... Qf5 {[%clk 0:00:54.4]} 29. Rd1 {[%clk
0:01:07.4]} 29... Qf3 {[%clk 0:00:51.6]} 30. Qa4 {[%clk 0:01:04.9]} 30... Kg7
{[%clk 0:00:31]} 31. Rb1 {[%clk 0:01:04.2]} 31... Rc3 {[%clk 0:00:19.9]} 32. Qd1
{[%clk 0:00:54.2]} 32... Qxd1+ {[%clk 0:00:19.4]} 33. Rxd1 {[%clk 0:00:53.8]}
33... Rc6 {[%clk 0:00:17.9]} 34. Kg2 {[%clk 0:00:53.6]} 34... f5 {[%clk
0:00:17]} 35. Kf3 {[%clk 0:00:50.9]} 35... Kf7 {[%clk 0:00:17]} 36. h4 {[%clk
0:00:51.2]} 36... Ke6 {[%clk 0:00:17.3]} 37. Ke2 {[%clk 0:00:42.6]} 37... d5
{[%clk 0:00:17.3]} 38. Rb1 {[%clk 0:00:17.4]} 38... d4 {[%clk 0:00:17.2]} 39.
Bd2 {[%clk 0:00:17.7]} 39... Kd5 {[%clk 0:00:16.5]} 40. Kd3 {[%clk 0:00:18]}
40... Bd6 {[%clk 0:00:15]} 41. Rb5+ {[%clk 0:00:16.7]} 41... Rc5 {[%clk
0:00:15.4]} 42. Rxc5+ {[%clk 0:00:15.2]} 42... Bxc5 {[%clk 0:00:15.7]} 43. f3
{[%clk 0:00:15.1]} 43... Bd6 {[%clk 0:00:15.9]} 44. g4 {[%clk 0:00:15]} 44...
Be7 {[%clk 0:00:14]} 45. h5 {[%clk 0:00:14.7]} 45... gxh5 {[%clk 0:00:11.3]} 46.
gxh5 {[%clk 0:00:14.6]} 46... Bf6 {[%clk 0:00:11.8]} 47. h6 {[%clk 0:00:12.6]}
47... Ke6 {[%clk 0:00:10.3]} 48. Bc1 {[%clk 0:00:10]} 48... Kf7 {[%clk
0:00:10.7]} 49. Bb2 {[%clk 0:00:09.4]} 49... Kg6 {[%clk 0:00:10]} 50. h7 {[%clk
0:00:05.9]} 50... Kxh7 {[%clk 0:00:10.1]} 51. Bxd4 {[%clk 0:00:06.4]} 51... Bxd4
{[%clk 0:00:10.4]} 52. Kxd4 {[%clk 0:00:07.1]} 52... Kg6 {[%clk 0:00:10.5]} 53.
Ke5 {[%clk 0:00:06.3]} 53... Kg5 {[%clk 0:00:09.8]} 54. Kd4 {[%clk 0:00:04.2]}
54... Kf4 {[%clk 0:00:09.8]} 0-1

[Event "Early-Titled-Tuesday-Blitz-September-12-2023"]
[Site "Chess.com"]
[Date "2023.09.12"]
[Round "2"]
[White "BlitzWizard04"]
[Black "sergoy"]
[Result "1/2-1/2"]
[WhiteElo "2617"]
[BlackElo "2924"]
[TimeControl "180+1"]
[EndTime "8:19:06 PDT"]
[Termination "Game drawn - insufficient material"]

1. e4 {[%clk 0:03:00.9]} 1... c5 {[%clk 0:03:00.2]} 2. Nf3 {[%clk 0:02:59.1]}
2... d6 {[%clk 0:03:01]} 3. d4 {[%clk 0:02:59]} 3... cxd4 {[%clk 0:03:01.9]} 4.
Nxd4 {[%clk 0:02:59.7]} 4... Nf6 {[%clk 0:03:02.5]} 5. Bb5+ {[%clk 0:03:00.4]}
5... Nbd7 {[%clk 0:02:59.2]} 6. O-O {[%clk 0:03:00.1]} 6... a6 {[%clk
0:02:58.9]} 7. Bd3 {[%clk 0:03:00.8]} 7... e6 {[%clk 0:02:55.9]} 8. c4 {[%clk
0:03:00.4]} 8... Qc7 {[%clk 0:02:56]} 9. Nc3 {[%clk 0:03:00.5]} 9... Be7 {[%clk
0:02:56.5]} 10. f3 {[%clk 0:03:00.4]} 10... b6 {[%clk 0:02:55.5]} 11. Be3 {[%clk
0:03:00.8]} 11... Bb7 {[%clk 0:02:56]} 12. Rc1 {[%clk 0:03:01.5]} 12... O-O
{[%clk 0:02:56.5]} 13. b4 {[%clk 0:03:01.6]} 13... Rfe8 {[%clk 0:02:52.2]} 14.
Kh1 {[%clk 0:03:01.4]} 14... Rac8 {[%clk 0:02:52.4]} 15. Qe2 {[%clk 0:03:01.2]}
15... h5 {[%clk 0:02:53]} 16. a4 {[%clk 0:02:56.5]} 16... Qb8 {[%clk 0:02:53]}
17. Bf2 {[%clk 0:02:42.3]} 17... d5 {[%clk 0:02:53.3]} 18. cxd5 {[%clk
0:02:40.2]} 18... exd5 {[%clk 0:02:49.5]} 19. Bxa6 {[%clk 0:02:38]} 19... Bxb4
{[%clk 0:02:44]} 20. Na2 {[%clk 0:02:33.5]} 20... Bc5 {[%clk 0:02:41.9]} 21.
Bxb7 {[%clk 0:02:22]} 21... Qxb7 {[%clk 0:02:39.8]} 22. Nb5 {[%clk 0:02:16.5]}
22... dxe4 {[%clk 0:02:32.2]} 23. Bxc5 {[%clk 0:01:52.9]} 23... exf3 {[%clk
0:02:30.6]} 24. Qxf3 {[%clk 0:01:53.8]} 24... Qxf3 {[%clk 0:02:30.1]} 25. Rxf3
{[%clk 0:01:54.7]} 25... Rxc5 {[%clk 0:02:25.1]} 26. Rd1 {[%clk 0:01:55.4]}
26... Rce5 {[%clk 0:02:16.2]} 27. h3 {[%clk 0:01:49.2]} 27... Nc5 {[%clk
0:02:14]} 28. Nac3 {[%clk 0:01:46.6]} 28... Re1+ {[%clk 0:01:53.5]} 29. Rxe1
{[%clk 0:01:46.9]} 29... Rxe1+ {[%clk 0:01:54]} 30. Kh2 {[%clk 0:01:47.8]} 30...
Nfe4 {[%clk 0:01:54.5]} 31. Nxe4 {[%clk 0:01:37.2]} 31... Nxe4 {[%clk
0:01:40.9]} 32. h4 {[%clk 0:01:19]} 32... Nc5 {[%clk 0:01:31.9]} 33. Nc3 {[%clk
0:01:11.1]} 33... Ra1 {[%clk 0:01:20]} 34. Rf4 {[%clk 0:01:02.4]} 34... Ra3
{[%clk 0:01:05.9]} 35. Rc4 {[%clk 0:01:03]} 35... f6 {[%clk 0:01:04.2]} 36. Nd5
{[%clk 0:00:48.7]} 36... Rxa4 {[%clk 0:00:33.4]} 37. Nxb6 {[%clk 0:00:48.2]}
37... Rxc4 {[%clk 0:00:34]} 38. Nxc4 {[%clk 0:00:49.1]} 38... Kf7 {[%clk
0:00:33.7]} 39. Kh3 {[%clk 0:00:49.6]} 39... Ne4 {[%clk 0:00:32.1]} 40. Nb2
{[%clk 0:00:44.7]} 40... Ke6 {[%clk 0:00:30.2]} 41. Nd3 {[%clk 0:00:45]} 41...
Kf5 {[%clk 0:00:30.7]} 42. Nb4 {[%clk 0:00:38.5]} 42... Nc3 {[%clk 0:00:27.4]}
43. Nc2 {[%clk 0:00:36.7]} 43... Nd5 {[%clk 0:00:27.4]} 44. Nd4+ {[%clk
0:00:36.3]} 44... Ke4 {[%clk 0:00:27.8]} 45. Nc6 {[%clk 0:00:34.3]} 45... Kf4
{[%clk 0:00:24.2]} 46. Nd4 {[%clk 0:00:33.6]} 46... Ke5 {[%clk 0:00:22.9]} 47.
Nf3+ {[%clk 0:00:32.3]} 47... Ke4 {[%clk 0:00:23.4]} 48. Nd2+ {[%clk 0:00:32.8]}
48... Kf5 {[%clk 0:00:22.9]} 49. Nc4 {[%clk 0:00:32.6]} 49... Kf4 {[%clk
0:00:22.8]} 50. Nd6 {[%clk 0:00:30.9]} 50... Ne3 {[%clk 0:00:21.1]} 51. Ne8
{[%clk 0:00:29.4]} 51... Nf5 {[%clk 0:00:21.3]} 52. Nc7 {[%clk 0:00:28.3]} 52...
Ke5 {[%clk 0:00:20.6]} 53. g4 {[%clk 0:00:28]} 53... Ne3 {[%clk 0:00:14.6]} 54.
gxh5 {[%clk 0:00:25.6]} 54... Kf5 {[%clk 0:00:15.2]} 55. Ne8 {[%clk 0:00:24.7]}
55... Ke6 {[%clk 0:00:11.8]} 56. Nxg7+ {[%clk 0:00:21.7]} 56... Kf7 {[%clk
0:00:12.4]} 57. h6 {[%clk 0:00:22.3]} 57... Kg6 {[%clk 0:00:13.1]} 58. Ne6
{[%clk 0:00:19.9]} 58... Kxh6 {[%clk 0:00:12.4]} 59. Nf4 {[%clk 0:00:20.7]}
59... Nf5 {[%clk 0:00:12.5]} 60. Nd5 {[%clk 0:00:20.6]} 60... Kg6 {[%clk
0:00:12.5]} 61. Nxf6 {[%clk 0:00:19.6]} 61... Kxf6 {[%clk 0:00:12.4]} 62. h5
{[%clk 0:00:20.2]} 62... Nh6 {[%clk 0:00:12.6]} 63. Kg3 {[%clk 0:00:20.5]} 63...
Kg5 {[%clk 0:00:13.2]} 64. Kh3 {[%clk 0:00:21.3]} 64... Ng4 {[%clk 0:00:13.4]}
65. Kg3 {[%clk 0:00:22.2]} 65... Ne5 {[%clk 0:00:13.9]} 66. Kh3 {[%clk
0:00:23.1]} 66... Nd3 {[%clk 0:00:14.6]} 67. Kg3 {[%clk 0:00:24]} 67... Nf4
{[%clk 0:00:15.5]} 68. Kf3 {[%clk 0:00:24.4]} 68... Ng6 {[%clk 0:00:15]} 69. Kg3
{[%clk 0:00:25.3]} 69... Ne5 {[%clk 0:00:14.8]} 70. h6 {[%clk 0:00:26.2]} 70...
Kg6 {[%clk 0:00:13.6]} 71. h7 {[%clk 0:00:27.1]} 71... Kg7 {[%clk 0:00:14.2]}
72. h8=Q+ {[%clk 0:00:27.6]} 72... Kxh8 {[%clk 0:00:15]} 1/2-1/2

[Event "Early-Titled-Tuesday-Blitz-September-12-2023"]
[Site "Chess.com"]
[Date "2023.09.12"]
[Round "2"]
[White "GMAkobianSTL"]
[Black "MarijaKuznecova"]
[Result "1-0"]
[WhiteElo "2728"]
[BlackElo "2387"]
[TimeControl "180+1"]
[EndTime "8:19:07 PDT"]
[Termination "GMAkobianSTL won on time"]

1. d4 {[%clk 0:02:54.8]} 1... Nf6 {[%clk 0:02:59.4]} 2. c4 {[%clk 0:02:53.4]}
2... c5 {[%clk 0:02:59.8]} 3. d5 {[%clk 0:02:52.2]} 3... b5 {[%clk 0:03:00.4]}
4. cxb5 {[%clk 0:02:51.6]} 4... a6 {[%clk 0:03:00.8]} 5. b6 {[%clk 0:02:46.7]}
5... e6 {[%clk 0:03:00.2]} 6. Nc3 {[%clk 0:02:46.3]} 6... Nxd5 {[%clk
0:03:00.2]} 7. Nxd5 {[%clk 0:02:46.5]} 7... exd5 {[%clk 0:03:01.1]} 8. Qxd5
{[%clk 0:02:46.3]} 8... Nc6 {[%clk 0:03:01.8]} 9. Nf3 {[%clk 0:02:45.9]} 9...
Rb8 {[%clk 0:02:51]} 10. e4 {[%clk 0:02:35.3]} 10... Be7 {[%clk 0:02:50.2]} 11.
Bc4 {[%clk 0:02:34.5]} 11... O-O {[%clk 0:02:49.4]} 12. O-O {[%clk 0:02:33.7]}
12... Qxb6 {[%clk 0:02:44.7]} 13. Rd1 {[%clk 0:02:29.5]} 13... d6 {[%clk
0:02:42.5]} 14. b3 {[%clk 0:02:21.3]} 14... Be6 {[%clk 0:02:29.9]} 15. Qd3
{[%clk 0:02:20.1]} 15... Bf6 {[%clk 0:02:14.8]} 16. Rb1 {[%clk 0:02:19]} 16...
Nb4 {[%clk 0:02:15.2]} 17. Qe2 {[%clk 0:02:18.3]} 17... Rfd8 {[%clk 0:01:53.8]}
18. Bg5 {[%clk 0:02:14.2]} 18... Bxg5 {[%clk 0:01:06.1]} 19. Nxg5 {[%clk
0:02:12.4]} 19... Bxc4 {[%clk 0:01:03.9]} 20. Qxc4 {[%clk 0:02:11.4]} 20... Qb7
{[%clk 0:01:02.1]} 21. Rd2 {[%clk 0:01:57.2]} 21... h6 {[%clk 0:01:01.9]} 22.
Nf3 {[%clk 0:01:56.2]} 22... Re8 {[%clk 0:00:44.7]} 23. Re1 {[%clk 0:01:29]}
23... Rbd8 {[%clk 0:00:45]} 24. h3 {[%clk 0:01:23.2]} 24... Re6 {[%clk 0:00:24]}
25. e5 {[%clk 0:01:11.9]} 25... Qe7 {[%clk 0:00:12.1]} 26. Rc1 {[%clk
0:01:06.4]} 26... dxe5 {[%clk 0:00:09.3]} 27. Rxd8+ {[%clk 0:00:28.2]} 27...
Qxd8 {[%clk 0:00:09.1]} 28. a3 {[%clk 0:00:25.5]} 28... Nd3 {[%clk 0:00:07.1]}
29. Rd1 {[%clk 0:00:24.3]} 29... e4 {[%clk 0:00:07.7]} 30. Ne1 {[%clk 0:00:23]}
30... Qd4 {[%clk 0:00:05.1]} 31. Qxd4 {[%clk 0:00:21.8]} 31... cxd4 {[%clk
0:00:06]} 32. Nxd3 {[%clk 0:00:22]} 32... exd3 {[%clk 0:00:06.9]} 33. Rxd3
{[%clk 0:00:22.1]} 33... Re1+ {[%clk 0:00:07.5]} 34. Kh2 {[%clk 0:00:21.9]}
34... Ra1 {[%clk 0:00:07]} 35. b4 {[%clk 0:00:18.3]} 35... Kf8 {[%clk
0:00:05.8]} 36. Kg3 {[%clk 0:00:18.4]} 36... Ke7 {[%clk 0:00:06]} 37. Kf4 {[%clk
0:00:18.6]} 37... Rf1 {[%clk 0:00:04.1]} 38. f3 {[%clk 0:00:12.9]} 38... Rg1
{[%clk 0:00:04.2]} 39. g4 {[%clk 0:00:12.6]} 39... Rh1 {[%clk 0:00:04.4]} 40.
Rxd4 {[%clk 0:00:12.2]} 40... Rxh3 {[%clk 0:00:04.5]} 41. Rd5 {[%clk 0:00:12]}
41... Rh1 {[%clk 0:00:03.1]} 42. Ra5 {[%clk 0:00:11.9]} 42... g5+ {[%clk
0:00:02.8]} 43. Kg3 {[%clk 0:00:10.5]} 43... Rg1+ {[%clk 0:00:03.3]} 44. Kf2
{[%clk 0:00:10.2]} 44... Rc1 {[%clk 0:00:02.9]} 45. Rxa6 {[%clk 0:00:10.3]}
45... Rc2+ {[%clk 0:00:03.2]} 46. Kg3 {[%clk 0:00:10.7]} 46... f6 {[%clk
0:00:02.3]} 47. b5 {[%clk 0:00:10.7]} 47... Rb2 {[%clk 0:00:02.1]} 48. a4 {[%clk
0:00:10.6]} 48... Rb3 {[%clk 0:00:02.6]} 49. b6 {[%clk 0:00:09.1]} 49... Kf7
{[%clk 0:00:02.1]} 50. a5 {[%clk 0:00:09.1]} 50... Kg6 {[%clk 0:00:02.6]} 51.
Ra7 {[%clk 0:00:09.4]} 51... h5 {[%clk 0:00:01.9]} 52. gxh5+ {[%clk 0:00:09.7]}
52... Kxh5 {[%clk 0:00:02.8]} 53. b7 {[%clk 0:00:10]} 53... f5 {[%clk
0:00:02.9]} 54. a6 {[%clk 0:00:09.6]} 54... f4+ {[%clk 0:00:02.5]} 55. Kh3
{[%clk 0:00:09.6]} 55... Rb1 {[%clk 0:00:02.4]} 56. Ra8 {[%clk 0:00:08.5]} 56...
Rh1+ {[%clk 0:00:01.8]} 57. Kg2 {[%clk 0:00:08.3]} 1-0

[Event "Early-Titled-Tuesday-Blitz-September-12-2023"]
[Site "Chess.com"]
[Date "2023.09.12"]
[Round "2"]
[White "Akylbek2021"]
[Black "Defend1r"]
[Result "0-1"]
[WhiteElo "2316"]
[BlackElo "2527"]
[TimeControl "180+1"]
[EndTime "8:19:08 PDT"]
[Termination "Defend1r won by resignation"]

1. e4 {[%clk 0:03:00.9]} 1... c5 {[%clk 0:03:00.2]} 2. Nf3 {[%clk 0:03:00.2]}
2... d6 {[%clk 0:03:00.5]} 3. d4 {[%clk 0:03:00.5]} 3... cxd4 {[%clk 0:03:00.4]}
4. Qxd4 {[%clk 0:03:01.4]} 4... a6 {[%clk 0:03:00.1]} 5. c4 {[%clk 0:02:59.9]}
5... Nc6 {[%clk 0:03:00.1]} 6. Qd1 {[%clk 0:02:59]} 6... g6 {[%clk 0:03:00.5]}
7. Nc3 {[%clk 0:02:59]} 7... Bg7 {[%clk 0:02:59.6]} 8. Bd3 {[%clk 0:02:58.7]}
8... Nf6 {[%clk 0:02:59.2]} 9. O-O {[%clk 0:02:59.1]} 9... Bg4 {[%clk
0:02:58.6]} 10. h3 {[%clk 0:02:57]} 10... Bxf3 {[%clk 0:02:58.6]} 11. Qxf3
{[%clk 0:02:57.9]} 11... Ne5 {[%clk 0:02:58.8]} 12. Qe2 {[%clk 0:02:57.5]} 12...
Nxd3 {[%clk 0:02:52.6]} 13. Qxd3 {[%clk 0:02:58.4]} 13... O-O {[%clk 0:02:52.2]}
14. Be3 {[%clk 0:02:58.1]} 14... Rc8 {[%clk 0:02:51.3]} 15. Rad1 {[%clk
0:02:57.8]} 15... Nd7 {[%clk 0:02:51.2]} 16. b3 {[%clk 0:02:57.9]} 16... b5
{[%clk 0:02:43.1]} 17. Nd5 {[%clk 0:02:47.6]} 17... Ne5 {[%clk 0:02:38.8]} 18.
Qe2 {[%clk 0:02:39.9]} 18... bxc4 {[%clk 0:02:38.7]} 19. f4 {[%clk 0:02:34.1]}
19... Nd7 {[%clk 0:01:34.9]} 20. bxc4 {[%clk 0:02:34.2]} 20... e6 {[%clk
0:01:25.9]} 21. Nb4 {[%clk 0:02:33.7]} 21... Qa5 {[%clk 0:01:25.8]} 22. Rxd6
{[%clk 0:01:56.2]} 22... Qxb4 {[%clk 0:01:24.9]} 23. Rxd7 {[%clk 0:01:56.4]}
23... Rxc4 {[%clk 0:01:23]} 24. e5 {[%clk 0:01:49.8]} 24... Rfc8 {[%clk
0:01:07.5]} 25. Rfd1 {[%clk 0:01:41.1]} 25... Bf8 {[%clk 0:01:07.7]} 26. Rd8
{[%clk 0:01:13]} 26... Rc2 {[%clk 0:01:00.8]} 27. Qxa6 {[%clk 0:00:25.8]} 27...
Qe4 {[%clk 0:00:53.2]} 28. Bf2 {[%clk 0:00:22.1]} 28... Qxf4 {[%clk 0:00:31.8]}
29. Qf1 {[%clk 0:00:16]} 29... Rxd8 {[%clk 0:00:25.3]} 30. Rxd8 {[%clk
0:00:15.6]} 30... Rc1 {[%clk 0:00:25.9]} 31. Be1 {[%clk 0:00:13.7]} 31... Qxf1+
{[%clk 0:00:24.9]} 32. Kxf1 {[%clk 0:00:14.6]} 32... Kg7 {[%clk 0:00:24.5]} 33.
Ke2 {[%clk 0:00:14.4]} 33... Be7 {[%clk 0:00:21.5]} 34. Rd7 {[%clk 0:00:10.1]}
34... Bg5 {[%clk 0:00:20.6]} 35. a4 {[%clk 0:00:10]} 35... Rc2+ {[%clk
0:00:20.5]} 36. Bd2 {[%clk 0:00:08.9]} 36... Ra2 {[%clk 0:00:20.7]} 37. Rd4
{[%clk 0:00:06.2]} 37... h5 {[%clk 0:00:20]} 38. g4 {[%clk 0:00:03.6]} 38...
hxg4 {[%clk 0:00:19]} 39. hxg4 {[%clk 0:00:04.5]} 39... Bxd2 {[%clk 0:00:17.7]}
40. Rxd2 {[%clk 0:00:05.4]} 40... Rxa4 {[%clk 0:00:18.4]} 41. Kf3 {[%clk
0:00:06.1]} 41... Ra3+ {[%clk 0:00:18.8]} 42. Kf4 {[%clk 0:00:06.1]} 42... Ra4+
{[%clk 0:00:18.8]} 43. Kg5 {[%clk 0:00:04.6]} 43... Re4 {[%clk 0:00:18.7]} 44.
Rd7 {[%clk 0:00:02.5]} 44... Rxe5+ {[%clk 0:00:19.2]} 45. Kf4 {[%clk 0:00:03.2]}
45... Re1 {[%clk 0:00:19.3]} 46. Rb7 {[%clk 0:00:03]} 46... Rf1+ {[%clk
0:00:19.7]} 47. Ke5 {[%clk 0:00:02.9]} 47... g5 {[%clk 0:00:19.7]} 48. Rb4
{[%clk 0:00:01.9]} 48... Kg6 {[%clk 0:00:20.1]} 49. Rc4 {[%clk 0:00:01.5]} 49...
Rf2 {[%clk 0:00:18.9]} 50. Rd4 {[%clk 0:00:01.3]} 50... Re2+ {[%clk 0:00:18.4]}
51. Kd6 {[%clk 0:00:01.8]} 51... Kf6 {[%clk 0:00:18.1]} 52. Rc4 {[%clk
0:00:01.8]} 52... Rf2 {[%clk 0:00:18.4]} 53. Rd4 {[%clk 0:00:01.7]} 53... Rf4
{[%clk 0:00:18.8]} 54. Rd3 {[%clk 0:00:01.8]} 54... Rxg4 {[%clk 0:00:19.2]} 55.
Rf3+ {[%clk 0:00:02.3]} 55... Rf4 {[%clk 0:00:19.6]} 56. Rg3 {[%clk 0:00:02.5]}
56... Rd4+ {[%clk 0:00:19.1]} 57. Kc5 {[%clk 0:00:02.4]} 57... Rd1 {[%clk
0:00:19.8]} 58. Rf3+ {[%clk 0:00:02.3]} 58... Kg6 {[%clk 0:00:20.5]} 59. Rg3
{[%clk 0:00:02.9]} 59... e5 {[%clk 0:00:21]} 60. Rf3 {[%clk 0:00:03.2]} 60... f5
{[%clk 0:00:21.4]} 61. Re3 {[%clk 0:00:03.6]} 61... e4 {[%clk 0:00:22]} 62. Rg3
{[%clk 0:00:03.9]} 62... g4 {[%clk 0:00:22.6]} 63. Rg2 {[%clk 0:00:04.4]} 63...
Kg5 {[%clk 0:00:23.2]} 64. Kc4 {[%clk 0:00:04.8]} 64... f4 {[%clk 0:00:23.4]}
65. Ra2 {[%clk 0:00:05.3]} 65... e3 {[%clk 0:00:23.8]} 66. Ra5+ {[%clk 0:00:06]}
66... Kh4 {[%clk 0:00:24.4]} 67. Ra8 {[%clk 0:00:06.4]} 67... Kg3 {[%clk
0:00:24.8]} 68. Rg8 {[%clk 0:00:06.4]} 68... Kf3 {[%clk 0:00:25.4]} 69. Re8
{[%clk 0:00:06.8]} 69... g3 {[%clk 0:00:25.8]} 70. Kc3 {[%clk 0:00:07.4]} 70...
g2 {[%clk 0:00:25.7]} 71. Rg8 {[%clk 0:00:08.1]} 71... Rd2 {[%clk 0:00:26.6]}
72. Rd8 {[%clk 0:00:07.1]} 72... Rxd8 {[%clk 0:00:26.2]} 0-1

[Event "Early-Titled-Tuesday-Blitz-September-12-2023"]
[Site "Chess.com"]
[Date "2023.09.12"]
[Round "2"]
[White "CFalcons8"]
[Black "MartinMatthiesen"]
[Result "0-1"]
[WhiteElo "2300"]
[BlackElo "2520"]
[TimeControl "180+1"]
[EndTime "8:19:08 PDT"]
[Termination "MartinMatthiesen won by resignation"]

1. e4 {[%clk 0:03:00.9]} 1... c6 {[%clk 0:02:59.9]} 2. d4 {[%clk 0:03:00]} 2...
d5 {[%clk 0:02:59.8]} 3. Nc3 {[%clk 0:02:58.5]} 3... dxe4 {[%clk 0:02:59.7]} 4.
Nxe4 {[%clk 0:02:59.4]} 4... Bf5 {[%clk 0:02:59.8]} 5. Ng3 {[%clk 0:02:59.6]}
5... Bg6 {[%clk 0:02:59.9]} 6. h4 {[%clk 0:02:59.5]} 6... h6 {[%clk 0:02:59.5]}
7. Nf3 {[%clk 0:02:59.1]} 7... Nd7 {[%clk 0:03:00.2]} 8. h5 {[%clk 0:02:58.8]}
8... Bh7 {[%clk 0:03:00.1]} 9. Bd3 {[%clk 0:02:59.4]} 9... Bxd3 {[%clk
0:03:00.7]} 10. Qxd3 {[%clk 0:03:00]} 10... e6 {[%clk 0:03:01.4]} 11. Bf4 {[%clk
0:02:57.4]} 11... Qa5+ {[%clk 0:02:53.9]} 12. Bd2 {[%clk 0:02:56.5]} 12... Bb4
{[%clk 0:02:53.8]} 13. c3 {[%clk 0:02:54.8]} 13... Be7 {[%clk 0:02:53.4]} 14. c4
{[%clk 0:02:54.7]} 14... Bb4 {[%clk 0:02:52.9]} 15. a3 {[%clk 0:02:54.4]} 15...
Bxd2+ {[%clk 0:02:52.3]} 16. Qxd2 {[%clk 0:02:55.3]} 16... Qxd2+ {[%clk
0:02:43]} 17. Kxd2 {[%clk 0:02:56.2]} 17... Ngf6 {[%clk 0:02:42.6]} 18. Ne5
{[%clk 0:02:34.7]} 18... Rd8 {[%clk 0:02:08.4]} 19. Ke2 {[%clk 0:02:29]} 19...
O-O {[%clk 0:01:49.5]} 20. Rhd1 {[%clk 0:02:04.4]} 20... c5 {[%clk 0:01:25.3]}
21. Nxd7 {[%clk 0:02:00.9]} 21... Nxd7 {[%clk 0:01:24.3]} 22. d5 {[%clk
0:01:59.3]} 22... Nb6 {[%clk 0:01:15.8]} 23. dxe6 {[%clk 0:01:53.2]} 23... Rde8
{[%clk 0:01:14.2]} 24. b3 {[%clk 0:01:47.5]} 24... Rxe6+ {[%clk 0:01:06.4]} 25.
Kf1 {[%clk 0:01:40]} 25... Rfe8 {[%clk 0:00:59.6]} 26. Nf5 {[%clk 0:01:33.5]}
26... Kh7 {[%clk 0:00:52.8]} 27. a4 {[%clk 0:01:23.1]} 27... g6 {[%clk
0:00:45.3]} 28. hxg6+ {[%clk 0:01:17.1]} 28... fxg6 {[%clk 0:00:45.1]} 29. Ne3
{[%clk 0:01:16.7]} 29... Rf8 {[%clk 0:00:41.3]} 30. Kg1 {[%clk 0:01:11]} 30...
Rf7 {[%clk 0:00:37.5]} 31. a5 {[%clk 0:01:04.7]} 31... Nc8 {[%clk 0:00:37.2]}
32. Rd8 {[%clk 0:00:59.7]} 32... Nd6 {[%clk 0:00:29.1]} 33. Rd1 {[%clk
0:00:56.4]} 33... Ne4 {[%clk 0:00:28.9]} 34. R1d7 {[%clk 0:00:50.9]} 34... Ree7
{[%clk 0:00:28.4]} 35. Rxe7 {[%clk 0:00:48.2]} 35... Rxe7 {[%clk 0:00:29.3]} 36.
Nd5 {[%clk 0:00:46.2]} 36... Rf7 {[%clk 0:00:28.4]} 37. f3 {[%clk 0:00:45.5]}
37... Nd2 {[%clk 0:00:24.2]} 38. Nf6+ {[%clk 0:00:24.5]} 38... Rxf6 {[%clk
0:00:23.7]} 39. Rxd2 {[%clk 0:00:24.9]} 39... Rf7 {[%clk 0:00:20.4]} 40. Rd5
{[%clk 0:00:23.2]} 40... Rc7 {[%clk 0:00:20.4]} 41. Kf2 {[%clk 0:00:22.2]} 41...
Kg7 {[%clk 0:00:20.7]} 42. Ke3 {[%clk 0:00:21.8]} 42... Kf6 {[%clk 0:00:21]} 43.
Rd6+ {[%clk 0:00:17]} 43... Kf7 {[%clk 0:00:20.5]} 44. Ke4 {[%clk 0:00:15.7]}
44... h5 {[%clk 0:00:19.1]} 45. Kf4 {[%clk 0:00:12.9]} 45... Re7 {[%clk
0:00:16.3]} 46. Rd5 {[%clk 0:00:09.3]} 46... b6 {[%clk 0:00:15.3]} 47. axb6
{[%clk 0:00:07.8]} 47... axb6 {[%clk 0:00:16.2]} 48. Kg5 {[%clk 0:00:01.8]}
48... Re2 {[%clk 0:00:14.5]} 49. Rd6 {[%clk 0:00:01]} 49... Rxg2+ {[%clk
0:00:13.8]} 50. Kf4 {[%clk 0:00:01.9]} 50... g5+ {[%clk 0:00:11.9]} 51. Kf5
{[%clk 0:00:01.7]} 51... h4 {[%clk 0:00:12]} 52. Rxb6 {[%clk 0:00:02]} 52... h3
{[%clk 0:00:12.3]} 53. Rb7+ {[%clk 0:00:02.6]} 53... Ke8 {[%clk 0:00:11.4]} 54.
Rb6 {[%clk 0:00:03.1]} 54... h2 {[%clk 0:00:10.7]} 55. Rh6 {[%clk 0:00:03.7]}
55... Kd7 {[%clk 0:00:09.9]} 56. Rh7+ {[%clk 0:00:03.7]} 56... Kc6 {[%clk
0:00:09.8]} 57. Rh6+ {[%clk 0:00:04.1]} 57... Kb7 {[%clk 0:00:09.1]} 58. f4
{[%clk 0:00:03.6]} 58... g4 {[%clk 0:00:08.8]} 59. Ke5 {[%clk 0:00:02.5]} 59...
g3 {[%clk 0:00:08.9]} 60. Kd5 {[%clk 0:00:02.7]} 60... Rg1 {[%clk 0:00:08.9]}
61. Kxc5 {[%clk 0:00:03.1]} 61... h1=Q {[%clk 0:00:08.4]} 0-1